Cogmind - Beta 10.2 @@@ ROGUE MODE // 2021.02.06 @ 18:57:11 Player: David Result: Destroyed by D-53 Grenadier with Mini Grenade Launcher Performance ------------- Evolutions (1) 500 Regions Visited (3) 600 Robots Destroyed (41) 205 Value Destroyed (937) 937 Prototype IDs (0) 0 Alien Tech Used (0) 0 Bonus (11) 11 TOTAL SCORE: 2253 Bonus ------- High Alert Combat Kills 11 Cogmind --------- Core Integrity 0/400 Matter 291/300 Energy 70/100 System Corruption 0% Temperature Cool (0) Movement Core (100) Ox1 Location -9/Mines Parts ------- > --- POWER (1) -------- (None) > --- PROPULSION (2) --- (None) > --- UTILITY (4) ------ Small Storage Unit > --- WEAPON (2) ------- (None) > --- INVENTORY (6) ---- Light Ion Engine Aluminum Leg Hacking Suite Heavy EM Pulse Gun Datajack Peak State ------------ > --- POWER ------------ Light Nuclear Core > --- PROPULSION ------- Aluminum Leg Aluminum Leg > --- UTILITY ---------- Cooling System Small Storage Unit Sensor Array Core Shielding > --- WEAPON ----------- Particle Cannon Shotgun > --- INVENTORY -------- Light Ion Engine Hacking Suite Heavy EM Pulse Gun Light EM Pulse Cannon Shotgun Datajack [Rating: 15] Favorites ----------- Power Ion Engine Engine Ion Engine Power Core Light Nuclear Core Propulsion Wheel Leg Aluminum Leg Wheel Wheel Utility Small Storage Unit Device Sensor Array Storage Small Storage Unit Protection Core Shielding Weapon Shotgun Energy Gun EM Pulse Gun Energy Cannon Particle Cannon Ballistic Gun Shotgun Build | -11 -10 -9 -9 ------- Run | Scr Mat Mat Min Slots Evolved 2 | . . 2 . Power . | . . . . Propulsion . | . . . . Utility 2 | . . 2 . Weapon . | . . . . Parts Attached 29 | 6 5 16 2 Power 5 | 1 1 3 . Engine 4 | 1 1 2 . Core 1 | . . 1 . Reactor . | . . . . Propulsion 7 | 2 . 5 . Treads . | . . . . Leg 5 | . . 5 . Wheel 2 | 2 . . . Hover . | . . . . Flight . | . . . . Utility 5 | 1 1 3 . Device 3 | . 1 2 . Storage 1 | 1 . . . Processor . | . . . . Hackware . | . . . . Protection 1 | . . 1 . Artifact . | . . . . Weapon 12 | 2 3 5 2 Energy Gun 1 | 1 . . . Energy Cannon 4 | . 1 2 1 Ballistic Gun 7 | 1 2 3 1 Ballistic Cannon . | . . . . Launcher . | . . . . Special Weapon . | . . . . Impact Weapon . | . . . . Slashing Weapon . | . . . . Piercing Weapon . | . . . . Special Melee Weapon . | . . . . Unidentified Prototypes . | . . . . Parts Lost 11 | . . 2 9 Power 2 | . . 1 1 Propulsion 3 | . . 1 2 Utility 3 | . . . 3 Weapon 3 | . . . 3 Highest Loss Streak 7 | . . 1 7 Average Slot Usage (%) 93 | . 92 92 95 Engine 11 | . 14 10 8 Leg 10 | . . 15 21 Wheel 13 | . 28 5 . Device 14 | . 7 19 21 Storage 12 | . 14 11 11 Protection 5 | . . 7 10 Energy Gun 2 | . 6 . . Energy Cannon 9 | . 7 10 10 Ballistic Gun 12 | . 14 11 10 Naked Turns . | . . . . Heaviest Build 20 | 12 14 20 20 Greatest Support 20 | 20 20 20 20 Greatest Overweight (x) 2 | . . 1 2 Average Overweight (x) . | . . . . Largest Inventory Capacity 6 | 6 6 6 6 Average Capacity 5 | 4 6 6 6 Most Carried 6 | 4 6 6 6 Average Carried 5 | 2 4 5 5 Final Capacity 6 | 6 6 6 6 Final Carried 6 | 2 5 6 5 Class Distribution -------------------- 61% | Mutant 38% | Scavenger-Mutant Dominant Class ---------------- Mutant | -10/Materials Scavenger-Mutant | -9/Materials Scavenger-Mutant | -9/Mines Resources | -11 -10 -9 -9 ----------- Run | Scr Mat Mat Min Matter Collected 743 | 243 116 346 38 Remotely . | . . . . Salvage Created 1356 | . 464 752 140 Parts 88 | . 29 43 16 Haulers Intercepted 1 | . . 1 . Recyclers Shooed 1 | . . 1 . Parts Field Recycled . | . . . . Retrieved Matter . | . . . . Parts Self-Destructed . | . . . . Prevented . | . . . . Kills | -11 -10 -9 -9 ------- Run | Scr Mat Mat Min Combat Hostiles Destroyed 30 | . 8 14 8 Guns 20 | . 8 6 6 Cannons 9 | . . 7 2 AOE 1 | . . 1 . Classes Destroyed 10 | . 6 4 . Worker 1 | . 1 . . Builder 1 | . . 1 . Hauler 1 | . . 1 . Recycler 3 | . 2 1 . Operator 1 | . 1 . . Watcher 4 | . 3 1 . Swarmer 13 | . 6 . 7 Grunt 14 | . 2 12 . Duelist 2 | . . 1 1 Sentry 1 | . . 1 . Best Kill Streak 7 | . 6 7 4 Combat Bots Only 6 | . 6 6 4 Max Kills in Single Turn 2 | . 1 2 1 Gunslinging . | . . . . Exploded 1 | . . 1 . Melee . | . . . . Uniques/NPCs Destroyed . | . . . . Combat | -11 -10 -9 -9 -------- Run | Scr Mat Mat Min Damage Taken 1836 | . 367 558 911 Core 550 | . 110 86 354 Absorbed by Shields . | . . . . Core Remaining (%) 78 | 100 56 . . Volleys Fired 121 | . 50 51 20 Largest 2 | . 2 2 2 Hottest 91 | . 80 91 91 Shots Fired 218 | . 99 89 30 Gun 163 | . 96 49 18 Cannon 55 | . 3 40 12 Launcher . | . . . . Special . | . . . . Kinetic 116 | . 49 49 18 Thermal 34 | . 3 21 10 Explosive . | . . . . Electromagnetic 68 | . 47 19 2 Robot Hit Streak 14 | . 6 14 4 Robot Miss Streak 7 | . 6 3 7 Penetration Max . | . . . . Secondary Targets 1 | . 1 . . Max Gunslinging Chain 1 | . 1 . . Shots Hit Robots 133 | . 50 66 17 Core Hits 63 | . 24 30 9 Critical Hits 1 | . . 1 . Critical Kills 1 | . . 1 . Critical Parts Destroyed . | . . . . Melee Attacks . | . . . . Impact . | . . . . Slashing . | . . . . Piercing . | . . . . Sneak Attacks . | . . . . Combat Hostiles . | . . . . Follow-up Attacks . | . . . . Damage Inflicted 1889 | . 506 1122 261 Guns 1111 | . 488 482 141 Cannons 697 | . 18 559 120 Explosions 81 | . . 81 . Melee . | . . . . Ramming . | . . . . Kinetic 872 | . 249 482 141 Thermal 508 | . 18 388 102 Explosive . | . . . . Electromagnetic 509 | . 239 252 18 Impact . | . . . . Slashing . | . . . . Piercing . | . . . . Highest Corruption . | . . . . Average Corruption . | . . . . Corruption Purged . | . . . . Overload Shots . | . . . . Overflow Damage 19 | . . 19 . Projectiles 16 | . . 16 . Explosions 3 | . . 3 . Melee . | . . . . Knockbacks . | . . . . Impact . | . . . . Kinetic . | . . . . Secondary . | . . . . Self-Inflicted Damage . | . . . . Shots . | . . . . Rammed . | . . . . Targets Rammed . | . . . . Kicked . | . . . . Crushed . | . . . . Highest Temperature 146 | . 146 77 . Average Temperature 46 | . 48 34 . Received Heat Transfer 396 | . 66 330 . Siege Activations . | . . . . Robots Corrupted . | . . . . Combat Hostiles . | . . . . Parts Fried 1 | . . 1 . Impact Corruptions . | . . . . Robots Melted . | . . . . Combat Hostiles . | . . . . Parts Melted 1 | . . . 1 Heat Transferred 927 | . 37 705 185 Parts Sabotaged . | . . . . Parts Stolen . | . . . . Parts Stripped . | . . . . Power Chain Reactions 2 | . . 2 . Missiles Intercepted . | . . . . Alert | -11 -10 -9 -9 ------- Run | Scr Mat Mat Min Peak Influence 410 | . 344 410 239 Initial 69 | . . 6 69 Average 179 | . 179 205 151 Maximum Alert Level 2 | . 1 2 1 Low Security (%) 57 | 100 64 29 92 Level 1 39 | . 35 62 7 Level 2 2 | . . 7 . Level 3 . | . . . . Level 4 . | . . . . Level 5 . | . . . . High Security . | . . . . Max Security . | . . . . Squads Dispatched 4 | . 2 2 . Investigation . | . . . . Extermination . | . . . . Reinforcement 4 | . 2 2 . Assault . | . . . . Garrison . | . . . . Intercept . | . . . . Construction Impeded . | . . . . Haulers Reinforced . | . . . . Stealth | -11 -10 -9 -9 --------- Run | Scr Mat Mat Min Distress Signals 3 | . . 2 1 Communications Jammed . | . . . . Distress Signals . | . . . . Times Spotted 56 | . 19 25 12 Peak Tracking Total 7 | . 7 7 4 Tactical Retreats 6 | . . 6 . Traps | -11 -10 -9 -9 ------- Run | Scr Mat Mat Min Traps Triggered . | . . . . Indirectly . | . . . . Trap Hack Attempts . | . . . . Triggered . | . . . . Disarmed . | . . . . Reprogrammed . | . . . . Reused . | . . . . Traps Extracted . | . . . . Installed . | . . . . Triggered . | . . . . Machines | -11 -10 -9 -9 ---------- Run | Scr Mat Mat Min Machines Disabled 6 | . 3 3 . Max in Single Turn 1 | . 1 1 . Machines Sabotaged . | . . . . Garrisons Compromised . | . . . . Overloaded Fab Kills . | . . . . Fab Network Shutdowns . | . . . . Hacking | -11 -10 -9 -9 --------- Run | Scr Mat Mat Min Machines Accessed 3 | . 1 2 . Terminals 3 | . 1 2 . Fabricators . | . . . . Repair Stations . | . . . . Recycling Units . | . . . . Scanalyzers . | . . . . Garrison Access . | . . . . Total Hacks 7 | . 2 5 . Successful 2 | . . 2 . Failed 5 | . 2 3 . Catastrophic 2 | . 1 1 . Database Lockouts . | . . . . Manual . | . . . . Terminals 7 | . 2 5 . Fabricators . | . . . . Repair Stations . | . . . . Recycling Units . | . . . . Scanalyzers . | . . . . Garrison Access . | . . . . Terminal Hacks 2 | . . 2 . Registered Prototypes 1 | . . 1 . Zone Layout 1 | . . 1 . Fabricator Hacks . | . . . . Repair Station Hacks . | . . . . Recycling Unit Hacks . | . . . . Scanalyzer . | . . . . Garrison Access Hacks . | . . . . Unauthorized Hacks . | . . . . Terminals . | . . . . Fabricators . | . . . . Repair Stations . | . . . . Recycling Units . | . . . . Scanalyzers . | . . . . Garrison Access . | . . . . Data Cores Recovered . | . . . . Used . | . . . . Hacking Detections 2 | . 1 1 . Full Trace Events 1 | . 1 . . Feedback Events . | . . . . Feedback Blocked . | . . . . Robot Schematics Acquired . | . . . . Robots Built . | . . . . Matter . | . . . . Time . | . . . . Total Robot Build Rating . | . . . . Part Schematics Acquired . | . . . . Parts Built . | . . . . Matter . | . . . . Time . | . . . . Total Part Build Rating . | . . . . Parts Repaired . | . . . . Time . | . . . . Parts Recycled . | . . . . Recycled Matter . | . . . . Retrieved Matter . | . . . . Retrieved Components . | . . . . Parts Scanalyzed . | . . . . Part Schematics Acquired . | . . . . Parts Damaged . | . . . . Bothacking | -11 -10 -9 -9 ------------ Run | Scr Mat Mat Min Used RIF Installer . | . . . . Robots Hacked . | . . . . Non-combat . | . . . . Combat . | . . . . Robot Hacks Applied . | . . . . Relay Couplers Released . | . . . . Robots Rewired . | . . . . Allies Hacked . | . . . . Hacks Repelled . | . . . . Allies | -11 -10 -9 -9 -------- Run | Scr Mat Mat Min Total Allies . | . . . . Largest Group . | . . . . Highest-Rated Group . | . . . . Highest-Rated Ally . | . . . . Total Orders . | . . . . Ally Attacks . | . . . . Total Damage . | . . . . Kills . | . . . . Allies Corrupted . | . . . . Allies Melted . | . . . . Intel | -11 -10 -9 -9 ------- Run | Scr Mat Mat Min Robot Analysis Total . | . . . . Derelict Logs Recovered 2 | . . . 2 Drone Launches . | . . . . Drone Recoveries . | . . . . Exploration | -11 -10 -9 -9 ------------- Run | Scr Mat Mat Min Turns Passed 2156 | 53 852 815 436 Spaces Moved 1316 | 52 445 571 248 Core 18 | 3 . . 15 Treads . | . . . . Legs 634 | . . 401 233 Wheels 664 | 49 445 170 . Hover . | . . . . Flight . | . . . . Fastest Speed 50 | 50 80 80 100 Average Speed 99 | 78 80 108 118 Slowest Speed 150 | 80 80 120 150 Overloaded Moves . | . . . . Propulsion Burnouts . | . . . . Robots Hopped . | . . . . Cave-ins Triggered . | . . . . Exploration Rate (%) 30 | 4 31 33 53 Regions Visited 3 Branch Regions 1 Pre-discovered Areas 1 | . . . 1 Known Exits Taken . | . . . . Unknown Exits Taken 3 | 1 1 1 . Scrap Searched . | . . . . Spaces Dug . | . . . . Terrain Destroyed 4 | . . 4 . Melee . | . . . . Projectile . | . . . . AOE 4 | . . 4 . Terrain Rammed . | . . . . Walls Destroyed . | . . . . Machines Disabled . | . . . . Actions | -11 -10 -9 -9 --------- Run | Scr Mat Mat Min Total 1952 | 63 852 679 358 Wait 451 | . 342 23 86 Move 1313 | 51 444 570 248 Hop . | . . . . Pick Up 22 | 6 7 8 1 Fast Attach 8 | 2 . 6 . Attach 9 | 4 2 2 1 Detach . | . . . . Swap 12 | . 3 8 1 Drop 16 | . 4 11 1 Fire 121 | . 50 51 20 Melee . | . . . . Ram . | . . . . Kick . | . . . . Crush . | . . . . Escape Stasis . | . . . . Rewire . | . . . . Trap . | . . . . Miscellaneous . | . . . . Route ------- -11/Scrapyard -10/Materials -9/Materials -9/Mines History --------- Turn | Location | Event 12 | -11/Scrapyard | Discovered new exit (range 15) 54 | -11/Scrapyard | Entered Materials 285 | -10/Materials | Discovered new exit (range 13) 307 | -10/Materials | Build established: Mutant 906 | -10/Materials | Entered another Materials area 906 | -9/Materials | Evolved 2 slots: Utility x2 1336 | -9/Materials | Discovered new exit (range 6) 1562 | -9/Materials | Build established: Scavenger-Mutant 1721 | -9/Materials | Entered Mines 1733 | -9/Mines | Assembled infested the area 1887 | -9/Mines | Learned 8 Materials zone layouts 1948 | -9/Mines | Learned location of Zion (-7) 2144 | -9/Mines | Core integrity fell below 50% 2155 | -9/Mines | Core integrity fell below 20% 2157 | -9/Mines | Destroyed by D-53 Grenadier with Mini Grenade Launcher Last Messages --------------- Data stored: Materials zone layouts (x8). 01889_ U-05 Engineer builds a Wall. 01928_ K-01 Serf collects debris. 01948_ Acquired derelict log, extracted data. World map updated: -7/Zion. 01966_ K-01 Serf collects debris. 02068_ S-10 Pest destroyed. 02076_ Ion Engine destroyed. 02076_ Particle Cannon destroyed. 02077_ S-10 Pest destroyed. 02103_ Acquired 12 matter. 02109_ Acquired Lgt. Ion Engine. 02139_ Lgt. EM Pulse Cannon destroyed. 02139_ Aluminum Leg destroyed. 02140_ Shotgun destroyed. 02140_ Aluminum Leg destroyed. 02140_ Sensor Array destroyed. 02141_ Cooling System destroyed. 02143_ Core Shielding destroyed. 02145_ The unstable cave ceiling collapses. Map ----- +----------------------------------------------------+ | ????????????????# ##########???# #??????????????? | | ????????????????????????????????# #???????#####??? | | ????????????????????????????????# #???????# ##?? | | ????????????????????????????????# #???????# ##? | | ????????????????????????????????# #???????## #? | | ????????????????????????????????# ########?## #? | | ????????????????????????????????# #?## ##? | | ????????????????????????????????######## #?# ##? | | ???????????????????????????????????????# ### ## | | ???????????????????????????????????????# | | ???????????????????????????????????????# ### | | ???????????????????????????????????????# #?# | | ???????????????????????????????????????# #?# | | ???????????????????????????????######### #?# | | ???????????????????????????????# ### | | ???????????????????????#####???# ??????# | | ??????????????????????## ##??# #?????#### [ # | | ??????????????????????# #??# #???######==% ## | | ??????????????????????# ##?# #?### # #%% ## | | ???????????????????????# ### ### # [ # | | ???????????????????????# # # # == # | | ???????????????????????# # # | | ???????????????????????## # | | ???????????????????????# # | | ?????????? ### d | | ?????????? @ d # | | ????????????????# ## | | ???????????????# ##### # ###? | | ??????????????# ??????####### # #### ##??? | | ?????????????# ??????????????# ##??#####???? | | ??????????????????????????????## #???????????? | | ???????????????????????????????# ##???????????? | | ???????????????????????????????# #????????????? | | ???????????????????????????????# #????????????? | | ??????????????????????????????? ##????????????? | | ??????????????????????????????? ##?????????????? | | ?????????????????????????????? #??????????????? | | ?????????????????????????????? ??????????????? | | ?????????????????????????????? ??????????????? | | ??????????????????????????????? ???????????????? | | ?????????????????????????????????????????????????? | | ?????????????????????????????????????????????????? | | ?????????????????????????????????????????????????? | | ?????????????????????????????????????????????????? | | ?????????????????????????????????????????????????? | | | | | | | | | | | +----------------------------------------------------+ Best States ------------- Heat Dissipation 50 Energy Generation 14 Energy Capacity 250 Matter Stores 300 Matter Capacity 300 Sight Range 16 Robot Scan Range 10 Terrain Scan Density 10 Core Shielding 20 Evasion (%) 44 Item Schematics ----------------- None Robot Schematics ------------------ None Fabricated ------------ Nothing Alien Tech Used ----------------- None Achievements -------------- None Challenges ------------ None Game ------ Seed UtilityTachyonRay Manual? 0 Play Time 00:27:02 Cumulative 68.5 hours Start 2021.02.06 @ 18:30:08 End 2021.02.06 @ 18:57:11 Sessions 1 Manual Loads 0 Difficulty Rogue Special Mode None Game No. 88 Rogue 88 Adventurer 0 Explorer 0 Win Type - Total 0 Types 0/0/0/0/0/0/0/0/0 Lore% 43 Gallery% 49 Achievement% 27 Wizard Run 0 Options --------- ASCII 0 Keyboard 0 Movement Mouse Keybinds 0 Fullscreen 1 Font 18/Smallcaps Map View 76x50 Tactical HUD 1 Map Filters NONE Filters NONE Steam 1 RUN: fed20ee9-45f1-4086-94b0-51b96cb54557